Cogmind - Beta 13 @@@ ROGUE MODE // 2024.04.17 @ 14:41:01 Player: Barbarossa Result: Destroyed by G-34 Mercenary with Small Laser Performance ------------- Evolutions (1) 500 Regions Visited (2) 400 Robots Destroyed (34) 170 Value Destroyed (776) 776 Prototype IDs (3) 60 Alien Tech Used (0) 0 Bonus (0) 0 TOTAL SCORE: 1906 Bonus ------- None Cogmind --------- Core Integrity 0/400 Matter 300/300 Energy 280/280 System Corruption 2% Temperature Cool (12) Movement Core (100) Ox1 Location -9/Materials Parts ------- > --- POWER (1) -------- Heavy Ion Engine > --- PROPULSION (3) --- (None) > --- UTILITY (3) ------ Small Storage Unit Weight Redist. System Hacking Suite > --- WEAPON (2) ------- Mining Claw > --- INVENTORY (8) ---- Hover Unit Flight Unit Improved Heat Sink Sensor Array Beam Cannon Light Cannon Plasma Cutter Peak State ------------ > --- POWER ------------ Heavy Ion Engine > --- PROPULSION ------- Aluminum Leg Aluminum Leg Aluminum Leg > --- UTILITY ---------- Small Storage Unit Weight Redist. System Hacking Suite > --- WEAPON ----------- Mining Claw Mining Claw > --- INVENTORY -------- Hover Unit Flight Unit Improved Heat Sink Sensor Array Beam Cannon Light Cannon Plasma Cutter [Rating: 15] Favorites ----------- Power Light Ion Engine Engine Light Ion Engine Power Core Light Nuclear Core Propulsion Hover Unit Leg Aluminum Leg Hover Unit Hover Unit Flight Unit Flight Unit Utility Small Storage Unit Device Improved Heat Sink Storage Small Storage Unit Hackware Hacking Suite Weapon Mining Claw Energy Gun Medium Laser Ballistic Gun Assault Rifle Ballistic Cannon Light Cannon Slashing Weapon Mining Claw Build | -11 -10 -9 ------- Run | Yrd Mat Mat Slots Evolved 2 | . . 2 Power . | . . . Propulsion 1 | . . 1 Utility 1 | . . 1 Weapon . | . . . Parts Attached 33 | . 15 18 Power 9 | . 4 5 Engine 8 | . 4 4 Core 1 | . . 1 Reactor . | . . . Propulsion 17 | . 6 11 Treads . | . . . Leg 4 | . 1 3 Wheel . | . . . Hover 8 | . 5 3 Flight 5 | . . 5 Utility 3 | . 1 2 Device 2 | . . 2 Storage . | . . . Processor . | . . . Hackware 1 | . 1 . Protection . | . . . Artifact . | . . . Weapon 4 | . 4 . Energy Gun . | . . . Energy Cannon . | . . . Ballistic Gun . | . . . Ballistic Cannon 2 | . 2 . Launcher . | . . . Special Weapon . | . . . Impact Weapon . | . . . Slashing Weapon 2 | . 2 . Piercing Weapon . | . . . Special Melee Weapon . | . . . Unidentified Prototypes 1 | . . 1 Parts Lost 15 | . 3 12 Power 3 | . 1 2 Propulsion 11 | . 2 9 Utility . | . . . Weapon 1 | . . 1 Highest Loss Streak 4 | . 3 4 To Critical Strikes . | . . . Average Slot Usage (%) 92 | . 94 89 Engine 11 | . 14 8 Leg 6 | . 5 7 Hover 16 | . 20 10 Flight 2 | . . 6 Device 4 | . . 11 Storage 12 | . 14 11 Hackware 10 | . 10 11 Energy Gun 5 | . 8 . Ballistic Gun 2 | . 3 . Ballistic Cannon 3 | . 5 . Slashing Weapon 14 | . 10 21 Naked Turns . | . . . Heaviest Build 17 | 12 15 17 Greatest Support 36 | 20 20 36 Greatest Overweight (x) 4 | . 3 4 Average Overweight (x) . | . . . Largest Inventory Capacity 8 | . 8 8 Average Capacity 8 | . 8 8 Most Carried 8 | . 8 8 Average Carried 7 | . 7 6 Final Capacity 8 | 8 8 8 Final Carried 8 | 6 8 7 Class Distribution -------------------- 64% | Scavenger-Mutant 35% | Mutant Dominant Class ---------------- Mutant | -10/Materials Scavenger-Mutant | -9/Materials Resources | -11 -10 -9 ----------- Run | Yrd Mat Mat Matter Collected 655 | 200 295 160 Remotely . | . . . Salvage Created 1191 | . 487 704 Parts 76 | . 30 46 Haulers Intercepted 5 | . 2 3 Recyclers Shooed 2 | . 2 . Parts Field Recycled . | . . . Retrieved Matter . | . . . Parts Self-Destructed . | . . . Prevented . | . . . Kills | -11 -10 -9 ------- Run | Yrd Mat Mat Combat Hostiles Destroyed 24 | . 8 16 Melee 16 | . . 16 Guns 5 | . 5 . Cannons 2 | . 2 . Classes Destroyed 8 | . 7 1 Worker 1 | . 1 . Hauler 5 | . 2 3 Recycler 1 | . 1 . Operator 1 | . 1 . Watcher 2 | . 2 . Swarmer 8 | . 3 5 Grunt 14 | . 5 9 Sentry 2 | . . 2 Best Kill Streak 4 | . 4 4 Combat Bots Only 4 | . 3 4 Max Kills in Single Turn 1 | . 1 1 Gunslinging . | . . . Exploded . | . . . Melee 1 | . . 1 Uniques/NPCs Destroyed . | . . . Combat | -11 -10 -9 -------- Run | Yrd Mat Mat Hostile Shots Fired 223 | . 71 152 Missed 56 | . 15 41 Damage Taken 1887 | . 644 1243 Core 520 | . 115 405 Absorbed by Shields . | . . . Regen/Repaired (Parts) 35 | . 35 . Core Remaining (%) 77 | 100 54 . Volleys Fired 50 | . 50 . Largest 2 | . 2 . Hottest 85 | . 85 . Shots Fired 91 | . 91 . Gun 71 | . 71 . Cannon 20 | . 20 . Launcher . | . . . Special . | . . . Kinetic 50 | . 50 . Thermal 41 | . 41 . Explosive . | . . . Electromagnetic . | . . . Robot Hit Streak 8 | . 8 . Robot Miss Streak 3 | . 3 . Penetration Max . | . . . Secondary Targets 2 | . 2 . Max Gunslinging Chain 1 | . 1 . Shots Hit Robots 118 | . 66 52 Core Hits 44 | . 24 20 Critical Kills 1 | . 1 . Critical Parts Destroyed . | . . . Critical Strikes 6 | . 6 . Burn 5 | . 5 . Destroy 1 | . 1 . Melee Attacks 86 | . 17 69 Impact . | . . . Slashing 86 | . 17 69 Piercing . | . . . Sneak Attacks 9 | . 5 4 Combat Hostiles . | . . . Follow-up Attacks 14 | . 2 12 Damage Inflicted 2401 | . 1101 1300 Guns 577 | . 577 . Cannons 208 | . 208 . Explosions . | . . . Melee 1616 | . 316 1300 Ramming . | . . . Kinetic 497 | . 497 . Thermal 288 | . 288 . Explosive . | . . . Electromagnetic . | . . . Impact . | . . . Slashing 1616 | . 316 1300 Piercing . | . . . Highest Corruption 2 | . . 2 Average Corruption 2 | . . 2 Corruption Purged . | . . . Corruption Blocked . | . . . Effects 5 | . . 5 Message Errors 1 | . . 1 Matter Fused 1 | . . 1 Heat Flow Errors 3 | . . 3 Overload Shots . | . . . Overflow Damage 79 | . 73 6 Projectiles . | . . . Explosions . | . . . Melee 79 | . 73 6 Knockbacks . | . . . Impact . | . . . Kinetic . | . . . Secondary . | . . . Self-Inflicted Damage . | . . . Shots . | . . . Rammed . | . . . Targets Rammed . | . . . Kicked . | . . . Crushed . | . . . Highest Temperature 256 | . 256 201 Average Temperature 88 | . 87 94 Received Heat Transfer 828 | . 336 492 Effects 3 | . 3 . Energy Bleed 1 | . 1 . Interference 2 | . 2 . Siege Activations . | . . . Robots Corrupted . | . . . Combat Hostiles . | . . . Parts Fried . | . . . Impact Corruptions . | . . . Robots Melted 1 | . 1 . Combat Hostiles 1 | . 1 . Parts Melted 1 | . 1 . Heat Transferred 1221 | . 1221 . Parts Sabotaged . | . . . Parts Stolen . | . . . Parts Stripped . | . . . Power Chain Reactions . | . . . Alert | -11 -10 -9 ------- Run | Yrd Mat Mat Peak Influence 231 | . 231 225 Initial . | . . . Average 101 | . 95 111 Maximum Alert Level 1 | . 1 1 Low Security (%) 91 | . 94 87 Level 1 8 | . 5 12 Level 2 . | . . . Level 3 . | . . . Level 4 . | . . . Level 5 . | . . . High Security . | . . . Max Security . | . . . Squads Dispatched 4 | . 3 1 Investigation 1 | . 1 . Extermination . | . . . Reinforcement 3 | . 2 1 Assault . | . . . Garrison . | . . . Intercept . | . . . Searches Triggered . | . . . Construction Impeded . | . . . Haulers Reinforced . | . . . Active Scanning Responses . | . . . Cargo Convoy Interrupts . | . . . Stealth | -11 -10 -9 --------- Run | Yrd Mat Mat Distress Signals 4 | . 2 2 Communications Jammed . | . . . Distress Signals . | . . . Times Spotted 47 | . 22 25 Peak Tracking Total 8 | . 8 8 Tactical Retreats . | . . . Traps | -11 -10 -9 ------- Run | Yrd Mat Mat Traps Triggered 1 | . 1 . Indirectly . | . . . Trap Hack Attempts . | . . . Triggered . | . . . Disarmed . | . . . Reprogrammed . | . . . Reused . | . . . Traps Extracted . | . . . Installed . | . . . Triggered . | . . . Machines | -11 -10 -9 ---------- Run | Yrd Mat Mat Machines Disabled . | . . . Max in Single Turn . | . . . Machines Repaired . | . . . Machines Dismantled . | . . . Machines Sabotaged . | . . . Overloaded Fab Kills . | . . . Hacking | -11 -10 -9 --------- Run | Yrd Mat Mat Machines Accessed 7 | . 5 2 Terminals 6 | . 4 2 Fabricators . | . . . Repair Stations 1 | . 1 . Recycling Units . | . . . Scanalyzers . | . . . Garrison Access . | . . . Total Hacks 19 | . 14 5 Successful 12 | . 9 3 Failed 7 | . 5 2 Catastrophic 1 | . 1 . Database Lockouts . | . . . Manual 9 | . 6 3 Terminals 15 | . 10 5 Fabricators . | . . . Repair Stations 4 | . 4 . Recycling Units . | . . . Scanalyzers . | . . . Garrison Access . | . . . Terminal Hacks 2 | . 1 1 Prototype ID Bank 1 | . . 1 Locate Traps 1 | . 1 . Fabricator Hacks . | . . . Repair Station Hacks 4 | . 4 . Scan Component 2 | . 2 . Repair 2 | . 2 . Recycling Unit Hacks . | . . . Scanalyzer . | . . . Garrison Access Hacks . | . . . Unauthorized Hacks 6 | . 4 2 Terminals 6 | . 4 2 Botnet 6 | . 4 2 Fabricators . | . . . Repair Stations . | . . . Recycling Units . | . . . Scanalyzers . | . . . Garrison Access . | . . . Data Cores Recovered . | . . . Used . | . . . Hacking Detections 5 | . 4 1 Full Trace Events . | . . . Feedback Events . | . . . Feedback Blocked . | . . . Robot Schematics Acquired . | . . . Robots Built . | . . . Authchips . | . . . Time . | . . . Total Robot Build Rating . | . . . Part Schematics Acquired . | . . . Parts Built . | . . . Authchips . | . . . Time . | . . . Total Part Build Rating . | . . . Parts Repaired 2 | . 2 . Time 52 | . 52 . Parts Recycled . | . . . Recycled Matter . | . . . Retrieved Matter . | . . . Retrieved Components . | . . . Parts Scanalyzed . | . . . Part Schematics Acquired . | . . . Parts Damaged . | . . . Bothacking | -11 -10 -9 ------------ Run | Yrd Mat Mat Used RIF Installer . | . . . Robots Hacked . | . . . Non-combat . | . . . Combat . | . . . Robot Hacks Applied . | . . . Relay Couplers Released . | . . . Fabnet Peak Effective % . | . . . Robots Rewired . | . . . Allies Hacked . | . . . Hacks Repelled . | . . . Allies | -11 -10 -9 -------- Run | Yrd Mat Mat Total Allies . | . . . Largest Group . | . . . Highest-Rated Group . | . . . Highest-Rated Ally . | . . . Total Orders . | . . . Ally Attacks . | . . . Total Damage . | . . . Kills . | . . . Allies Corrupted . | . . . Allies Melted . | . . . Intel | -11 -10 -9 ------- Run | Yrd Mat Mat Robot Analysis Total . | . . . Derelict Logs Recovered . | . . . Drone Launches . | . . . Drone Recoveries . | . . . Exploration | -11 -10 -9 ------------- Run | Yrd Mat Mat Turns Passed 1348 | . 813 535 Spaces Moved 979 | 1 629 349 Core 11 | . 5 6 Treads . | . . . Legs 159 | 1 76 82 Wheels . | . . . Hover 729 | . 548 181 Flight 80 | . . 80 Fastest Speed 34 | 120 56 34 Average Speed 84 | 120 84 84 Slowest Speed 280 | 120 200 280 Overloaded Moves . | . . . Propulsion Burnouts . | . . . Robots Hopped . | . . . Cave-ins Triggered . | . . . Exploration Rate (%) 40 | 2 82 38 Regions Visited 2 Branch Regions . Pre-discovered Areas . | . . . Known Exits Taken . | . . . Unknown Exits Taken 2 | 1 1 . Scrap Searched . | . . . Spaces Dug 2 | . 2 . Terrain Destroyed 2 | . 2 . Melee 2 | . 2 . Projectile . | . . . AOE . | . . . Terrain Rammed . | . . . Walls Destroyed . | . . . Machines Disabled . | . . . Actions | -11 -10 -9 --------- Run | Yrd Mat Mat Total 1269 | . 795 474 Wait 97 | . 63 34 Move 977 | . 628 349 Hop . | . . . Pick Up 25 | . 14 11 Fast Attach 7 | . 6 1 Attach 15 | . 3 12 Detach 1 | . . 1 Swap 11 | . 6 5 Drop 18 | . 13 5 Fire 50 | . 50 . Melee 68 | . 12 56 Ram . | . . . Kick . | . . . Crush . | . . . Escape Stasis . | . . . Rewire . | . . . Trap . | . . . Miscellaneous . | . . . Route ------- -11/Scrapyard -10/Materials (discovered 3 exits: *Mat x2 / [*Min]) -9/Materials (discovered 2 exits: [*Min x2]) History --------- Turn | Location | Event 1 | -11/Scrapyard | Discovered new exit (range 0) 1 | -11/Scrapyard | Entered Materials 185 | -10/Materials | Lost 3 parts (1p2n) 306 | -10/Materials | Build established: Mutant 631 | -10/Materials | Repaired Hover Unit 658 | -10/Materials | Repaired Hover Unit 666 | -10/Materials | Discovered new exit (range 7) 683 | -10/Materials | Discovered new exit (range 12) 789 | -10/Materials | Discovered new exit (range 16) 814 | -10/Materials | Entered another Materials area 814 | -9/Materials | Evolved 2 slots: Propulsion x1, Utility x1 816 | -9/Materials | Discovered new exit (range 8) 959 | -9/Materials | Build established: Scavenger-Mutant 1178 | -9/Materials | Discovered new exit (range 10) 1228 | -9/Materials | Core integrity fell below 50% 1336 | -9/Materials | Core integrity fell below 20% 1349 | -9/Materials | Destroyed by G-34 Mercenary with Small Laser Last Messages --------------- 01249_ System corrupted: Heat flow error (+117). 01253_ R-06 Scavenger collects Weight Redist. System. 01261_ R-06 Scavenger collects Imp. Heat Sink. 01303_ W-16 Scout sends out distress signal. 01310_ S-10 Pest Flight Unit ripped off. 01313_ S-10 Pest destroyed. 01321_ Acquired 13 matter. 01324_ Mining Claw destroyed. 01326_ Acquired 11 matter. 01331_ G-34 Mercenary destroyed. 01331_ Aluminum Leg destroyed. 01332_ ALERT: Hostiles spotted, dispatching reinforcements to Terminal M003. 01333_ Aluminum Leg destroyed. 01335_ S-10 Pest destroyed. 01338_ G-34 Mercenary destroyed. 01341_ Acquired 26 matter. 01345_ Aluminum Leg destroyed. 01348_ G-47 Trooper destroyed. Map ----- +----------------------------------------------------+ | | | | | | | | | | | | | | | | | | | | | | | | | | | | | | | ?????????????????????????????????????????????????? | | ?????????????????????????????????????????????????? | | ?????????????????????????????????????????????????? | | ?????????????????????????????????????????????????? | | ???????????????????????????????????#?????????????? | | ?????????????????????????????????? #?????????????? | | ????????????????????????????????? ??????????????? | | ???????????????????????????????? ???????????????? | | ??????????????????????????????? ????? ?????????? | | ??????????####################+##### ????????? | | ????????? g *=[!@=% a ????????? | | ????????? g =%a[%*g g ????????? | | ????????? [[=*== g m ????????? | | ???????????###+######+### *=######## #?????????? | | ????????????????????????# #????????????????????? | | ????????????????????????# #????????????????????? | | ????????????????????????# #????????????????????? | | ????????????????????????# #????????????????????? | | ????????????????????????# #????????????????????? | | ????????????????????????# #????????????????????? | | #######?????????????????# ##############???????? | | ]#?????????????????# # [ !]! #???????? | | #?????????????????# # """ !]! #???????? | | #?????????????????# + """ !] #???????? | | "" #?????????????????# # """ #???????? | | """"" #?????????????????# # #???????? | | """"" #?????????????????# ##############???????? | | """"" #????????? ???????# ########?????????????? | | """ #????????? ######## # #?????????????? | | #????????? # # # #?????????????? | | #######????????# # # # #?????????????? | | ???????######??# #""" # # """ #?????????????? | | ??????##!!!!##?# #""" # %# """ #?????????????? | | ##?????! !#?# #""" + +% "" #?????????????? | | #?????? #?# # # ########?????????????? | +----------------------------------------------------+ Best States ------------- Heat Dissipation 42 Energy Generation 14 Energy Capacity 280 Matter Stores 300 Matter Capacity 300 Sight Range 16 Terrain Scan Density 10 Additional Mass Support 6 Evasion (%) 55 Offensive Hacking 10 Item Schematics ----------------- None Robot Schematics ------------------ None Fabricated ------------ Nothing Alien Tech Used ----------------- None Achievements -------------- None Challenges ------------ None Game ------ Seed ReactionSapperCutter Manual? 0 Play Time 00:16:12 Cumulative 104.2 hours Start 2024.04.17 @ 14:25:58 End 2024.04.17 @ 14:41:01 Sessions 1 Manual Loads 0 Difficulty Rogue Special Mode None Game No. 206 Rogue 206 Adventurer 0 Explorer 0 Win Type - Total 0 Types 0/0/0/0/0/0/0/0/0 Lore% 30 Gallery% 40 Achievement% 27 Wizard Run 0 Options --------- Layout 1 ASCII 0 Keyboard 0 Movement Mouse Keybinds 0 Fullscreen 1 Font 24/Smallcaps Map View 50x40 Zoom Use 0% Tactical HUD 1 Map Filters NONE Filters NONE Steam 1 RUN: 3ce92570-128a-47b6-ae40-7190bd182384